fUST/lending_fUST_20250408
["ID","MTS","AMOUNT","RATE_DAILY","PERIOD"]
[357481716,1744080662175,-3853.42,0.00026301,2]
[357481717,1744080662190,-806.99,0.00026301,2]
[357481718,1744080662203,-500.0,0.00026301,2]
[357481719,1744080662216,-914.65,0.00026301,2]
[357481720,1744080662229,-1408.78,0.00026301,2]
[357481721,1744080662243,-885.26,0.00026301,2]
[357481722,1744080662255,-500.0,0.00026301,2]
[357481723,1744080662269,-1443.13,0.00026301,2]
[357481724,1744080662282,-838.82,0.00026301,2]
[357481725,1744080662295,-2520.44,0.00026301,2]
[357481726,1744080662308,-1457.24,0.00026301,2]
[357481727,1744080662321,-1190.25,0.00026301,2]
[357481728,1744080662335,-1820.22,0.00026301,2]
[357481729,1744080662348,-874.38,0.00026301,2]
[357481730,1744080662361,-2243.29,0.00026301,2]
[357481731,1744080662373,-918.27,0.00026301,2]
[357481732,1744080662386,-832.11,0.00026301,2]
[357481733,1744080662400,-1243.39,0.00026301,2]
[357481734,1744080662413,-156.58420551,0.00026301,2]
[357481735,1744080662427,-500.0,0.00026301,2]
[357481736,1744080662440,-531.98,0.00026301,2]
[357481737,1744080662453,-930.42,0.00026301,2]
[357481738,1744080662465,-1271.79,0.00026301,2]
[357481739,1744080662478,-500.0,0.00026301,2]
[357481740,1744080662701,-1627.71,0.00026301,2]
[357481741,1744080662729,-6572.6,0.00026301,2]
[357481742,1744080662744,-627.02,0.00026301,2]
[357481743,1744080662754,-1335.53,0.00026301,2]
[357481744,1744080662764,-634.06,0.00026575,2]
[357481745,1744080662776,-640.31,0.00026575,2]
[357481746,1744080662786,-500.0,0.00026575,2]
[357481747,1744080662796,-875.05,0.00026575,2]
[357481748,1744080662806,-704.94,0.00026575,2]
[357481749,1744080662815,-518.15,0.00026575,2]
[357481750,1744080662825,-665.11,0.00026575,2]
[357481751,1744080662835,-558.91172138,0.00026575,2]
[357481752,1744080662845,-500.0,0.00026575,2]
[357481753,1744080662854,-870.69,0.00026575,2]
[357481754,1744080662864,-3958.33,0.00026575,2]
[357481755,1744080662874,-519.84,0.00026575,2]
[357481756,1744080662884,-845.85,0.00026575,2]
[357481757,1744080662893,-634.46,0.00026575,2]
[357481758,1744080662903,-500.0,0.00026575,2]
[357481759,1744080662912,-514.04,0.00026575,2]
[357481760,1744080662922,-500.0,0.00026575,2]
[357481761,1744080662931,-756.23,0.00026575,2]
[357481762,1744080662941,-1558.34,0.00026575,2]
[357481763,1744080662952,-1644.4,0.00026575,2]
[357481764,1744080662964,-842.36,0.00026575,2]
[357481765,1744080662974,-1315.87,0.00026575,2]
[357481766,1744080662983,-2081.85,0.00026575,2]
[357481767,1744080662994,-500.0,0.00026575,2]
[357481768,1744080663005,-949.55,0.00026575,2]
[357481769,1744080663015,-500.0,0.00026575,2]
[357481770,1744080663025,-1734.75,0.00026575,2]
[357481771,1744080663036,-510.31,0.00026575,2]
[357481772,1744080663047,-903.98,0.00026575,2]
[357481773,1744080663057,-517.62,0.00026575,2]
[357481774,1744080663068,-1471.01,0.00026575,2]
[357481775,1744080663079,-500.0,0.00026575,2]
[357481776,1744080663089,-823.57,0.00026575,2]
[357481777,1744080663100,-563.79,0.00026575,2]
[357481778,1744080663110,-1205.37,0.00026575,2]
[357481779,1744080663120,-1071.82,0.00026575,2]
[357481780,1744080663131,-1075.98,0.00026575,2]
[357481781,1744080663141,-3853.42,0.00026575,2]
[357481782,1744080663151,-806.99,0.00026575,2]
[357481783,1744080663161,-500.0,0.00026575,2]
[357481784,1744080663171,-914.65,0.00026575,2]
[357481785,1744080663180,-1408.78,0.00026575,2]
[357481786,1744080663190,-885.26,0.00026575,2]
[357481787,1744080663200,-500.0,0.00026575,2]
[357481788,1744080663210,-1443.13,0.00026575,2]
[357481789,1744080663220,-838.82,0.00026575,2]
[357481790,1744080663230,-2520.44,0.00026575,2]
[357481791,1744080663241,-1457.24,0.00026575,2]
[357481792,1744080663251,-1190.25,0.00026575,2]
[357481793,1744080663261,-1820.22,0.00026575,2]
[357481794,1744080663271,-874.38,0.00026575,2]
[357481795,1744080663281,-2243.29,0.00026575,2]
[357481796,1744080663291,-918.27,0.00026575,2]
[357481797,1744080663301,-832.11,0.00026575,2]
[357481798,1744080663311,-1243.39,0.00026575,2]
[357481799,1744080663320,-566.62401485,0.00026575,2]
[357481800,1744080663332,-930.42,0.00026575,2]
[357481801,1744080663342,-531.98,0.00026575,2]
[357481802,1744080663352,-1271.79,0.00026575,2]
[357481803,1744080663362,-500.0,0.00026575,2]
[357481804,1744080663373,-1627.71,0.00026575,2]
[357481805,1744080663383,-6572.6,0.00026575,2]
[357481806,1744080663393,-627.02,0.00026575,2]
[357481807,1744080663404,-1335.53,0.00026575,2]
[357481808,1744080663414,-634.06,0.00026849,2]
[357481809,1744080663424,-640.31,0.00026849,2]
[357481810,1744080663434,-182.65171552,0.00026849,2]
[357481811,1744080663445,-875.05,0.00026849,2]
[357481812,1744080663455,-704.94,0.00026849,2]
[357481813,1744080663466,-518.15,0.00026849,2]
[357481814,1744080663478,-665.11,0.00026849,2]
[357481815,1744080663490,-500.0,0.00026849,2]
[357481816,1744080663502,-870.69,0.00026849,2]
[357481817,1744080663513,-3958.33,0.00026849,2]
[357481818,1744080663525,-519.84,0.00026849,2]
[357481819,1744080663536,-845.85,0.00026849,2]
[357481820,1744080663546,-634.46,0.00026849,2]
[357481821,1744080663557,-524.00331053,0.00026849,2]
[357481822,1744080663567,-514.04,0.00026849,2]
[357481823,1744080663577,-155.69520056,0.00026849,2]
[357481824,1744080663587,-756.23,0.00026849,2]
[357481825,1744080663597,-1558.34,0.00026849,2]
[357481826,1744080663608,-1644.4,0.00026849,2]
[357481827,1744080663619,-842.36,0.00026849,2]
[357481828,1744080663629,-1315.87,0.00026849,2]
[357481829,1744080663640,-2081.85,0.00026849,2]
[357481830,1744080663652,-500.0,0.00026849,2]
[357481831,1744080663664,-949.55,0.00026849,2]
[357481832,1744080663675,-319.46589594,0.00026849,2]
[357481833,1744080663686,-1734.75,0.00026849,2]
[357481834,1744080663696,-510.31,0.00026849,2]
[357481835,1744080663706,-903.98,0.00026849,2]
[357481836,1744080663717,-517.62,0.00026849,2]
[357481837,1744080663727,-1471.01,0.00026849,2]
[357481838,1744080663738,-214.18262429,0.00026849,2]
[357481839,1744080663748,-823.57,0.00026849,2]
[357481840,1744080663758,-563.79,0.00026849,2]
[357481841,1744080663768,-1205.37,0.00026849,2]
[357481842,1744080663779,-1071.82,0.00026849,2]
[357481843,1744080663789,-1075.98,0.00026849,2]
[357481844,1744080663799,-3853.42,0.00026849,2]
[357481845,1744080663809,-806.99,0.00026849,2]
[357481846,1744080663819,-500.0,0.00026849,2]
[357481847,1744080663831,-914.65,0.00026849,2]
[357481848,1744080663841,-1408.78,0.00026849,2]
[357481849,1744080663851,-885.26,0.00026849,2]
[357481850,1744080663860,-538.59218052,0.00026849,2]
[357481851,1744080663870,-1443.13,0.00026849,2]
[357481852,1744080663880,-838.82,0.00026849,2]
[357481853,1744080663890,-2520.44,0.00026849,2]
[357481854,1744080663900,-1457.24,0.00026849,2]
[357481856,1744080663910,-1190.25,0.00026849,2]
[357481857,1744080663921,-1820.22,0.00026849,2]
[357481858,1744080663931,-874.38,0.00026849,2]
[357481859,1744080663942,-2243.29,0.00026849,2]
[357481860,1744080663952,-918.27,0.00026849,2]
[357481861,1744080663964,-832.11,0.00026849,2]
[357481862,1744080663974,-1243.39,0.00026849,2]
[357481863,1744080663984,-930.42,0.00026849,2]
[357481864,1744080663994,-531.98,0.00026849,2]
[357481865,1744080664005,-1271.79,0.00026849,2]
[357481866,1744080664015,-500.0,0.00026849,2]
[357481867,1744080664026,-1627.71,0.00026849,2]
[357481868,1744080664035,-6572.6,0.00026849,2]
[357481869,1744080664046,-627.02,0.00026849,2]
[357481870,1744080664057,-1335.53,0.00026849,2]
[357481871,1744080664067,-231.28369723,0.0002698,2]
[357481872,1744080664077,-634.06,0.00027123,2]
[357481873,1744080664087,-640.31,0.00027123,2]
[357481874,1744080664098,-875.05,0.00027123,2]
[357481875,1744080664108,-704.94,0.00027123,2]
[357481876,1744080664119,-518.15,0.00027123,2]
[357481877,1744080664129,-665.11,0.00027123,2]
[357481878,1744080664139,-500.0,0.00027123,2]
[357481879,1744080664149,-870.69,0.00027123,2]
[357481880,1744080664160,-3958.33,0.00027123,2]
[357481881,1744080664170,-519.84,0.00027123,2]
[357481882,1744080664180,-845.85,0.00027123,2]
[357481883,1744080664190,-634.46,0.00027123,2]
[357481884,1744080664199,-514.04,0.00027123,2]
[357481885,1744080664210,-756.23,0.00027123,2]
[357481886,1744080664220,-151.0,0.00027123,7]
[357481887,1744080664231,-1558.34,0.00027123,2]
[357481888,1744080664242,-1644.4,0.00027123,2]
[357481889,1744080664253,-842.36,0.00027123,2]
[357481890,1744080664264,-151.0,0.00027123,7]
[357481891,1744080664276,-291.11115,0.00027123,7]
[357481892,1744080664287,-1315.87,0.00027123,2]
[357481893,1744080664299,-151.0,0.00027123,7]
[357481894,1744080664309,-521.67853146,0.00027123,2]
[357481895,1744080664321,-949.55,0.00027123,2]
[357481896,1744080664332,-1734.75,0.00027123,2]
[357481897,1744080664343,-510.31,0.00027123,2]
[357481898,1744080664354,-903.98,0.00027123,2]
[357481899,1744080664365,-517.62,0.00027123,2]
[357481900,1744080664375,-1471.01,0.00027123,2]
[357481901,1744080664385,-823.57,0.00027123,2]
[357481902,1744080664395,-253.205421,0.00027123,7]
[357481903,1744080664404,-563.79,0.00027123,2]
[357481904,1744080664414,-253.205421,0.00027123,7]
[357481905,1744080664424,-1205.37,0.00027123,2]
[357481906,1744080664433,-1071.82,0.00027123,2]
[357481907,1744080664443,-151.0,0.00027123,7]
[357481908,1744080664453,-1075.98,0.00027123,2]
[357481909,1744080664462,-3853.42,0.00027123,2]
[357481910,1744080664472,-151.0,0.00027123,7]
[357481911,1744080664483,-151.699805,0.00027123,7]
[357481912,1744080664493,-806.99,0.00027123,2]
[357481913,1744080664502,-543.04199874,0.00027123,2]
[357481914,1744080664512,-1683.81633,0.00027123,2]
[357481915,1744080664523,-914.65,0.00027123,2]
[357481916,1744080664532,-1683.81633,0.00027123,2]
[357481917,1744080664542,-1408.78,0.00027123,2]
[357481918,1744080664552,-885.26,0.00027123,2]
[357481919,1744080664562,-1443.13,0.00027123,2]
[357481920,1744080664572,-838.82,0.00027123,2]
[357481921,1744080664582,-2520.44,0.00027123,2]
[357481922,1744080664592,-1457.24,0.00027123,2]
[357481923,1744080664601,-1190.25,0.00027123,2]
[357481924,1744080664611,-1820.22,0.00027123,2]
[357481925,1744080664621,-874.38,0.00027123,2]
[357481926,1744080664631,-2243.29,0.00027123,2]
[357481927,1744080664640,-918.27,0.00027123,2]
[357481928,1744080664650,-832.11,0.00027123,2]
[357481929,1744080664660,-1243.39,0.00027123,2]
[357481930,1744080664669,-200.035634,0.00027123,7]
[357481931,1744080664678,-200.035634,0.00027123,7]
[357481932,1744080664689,-151.0,0.00027123,7]
[357481933,1744080664698,-930.42,0.00027123,2]
[357481934,1744080664708,-531.98,0.00027123,2]
[357481935,1744080664718,-235.22656,0.00027123,7]
[357481936,1744080664728,-1271.79,0.00027123,2]
[357481937,1744080664737,-500.0,0.00027123,2]
[357481938,1744080664748,-1627.71,0.00027123,2]
[357481939,1744080664758,-6572.6,0.00027123,2]
[357481940,1744080664768,-151.0,0.00027123,7]
[357481941,1744080664777,-627.02,0.00027123,2]
[357481942,1744080664787,-1335.53,0.00027123,2]
[357481943,1744080664797,-634.06,0.00027397,2]
[357481944,1744080664807,-640.31,0.00027397,2]
[357481945,1744080664816,-875.05,0.00027397,2]
[357481946,1744080664825,-704.94,0.00027397,2]
[357481947,1744080664835,-518.15,0.00027397,2]
[357481948,1744080664844,-665.11,0.00027397,2]
[357481949,1744080664854,-500.0,0.00027397,2]
[357481950,1744080664863,-344.52903144,0.00027397,2]
[357481951,1744080664873,-300.14238311,0.00027397,2]
[357481952,1744080664882,-150.315781,0.00027397,2]
[357481953,1744080664892,-150.34853812,0.00027397,2]
[357481954,1744080664901,-150.21896084,0.00027397,2]
[357481955,1744080664911,-200.0,0.00027397,2]
[357481956,1744080664920,-870.69,0.00027397,2]
[357481957,1744080664929,-150.08,0.00027397,2]
[357481958,1744080664939,-187.1469345,0.00027397,2]
[357481959,1744080664948,-150.08,0.00027397,2]
[357481960,1744080664957,-3958.33,0.00027397,2]
[357481961,1744080664969,-519.84,0.00027397,2]
[357481962,1744080664979,-845.85,0.00027397,2]
[357481963,1744080664988,-634.46,0.00027397,2]
[357481964,1744080664997,-501.49010657,0.00027397,2]
[357481965,1744080665008,-514.04,0.00027397,2]
[357481966,1744080665018,-756.23,0.00027397,2]
[357481967,1744080665028,-150.19837571,0.00027397,2]
[357481968,1744080665038,-151.62448049,0.00027397,2]
[357481969,1744080665047,-1558.34,0.00027397,2]
[357481970,1744080665057,-300.08686792,0.00027397,2]
[357481971,1744080665066,-150.29673519,0.00027397,2]
[357481972,1744080665075,-150.08,0.00027397,2]
[357481973,1744080665084,-150.18903886,0.00027397,2]
[357481974,1744080665094,-1644.4,0.00027397,2]
[357481975,1744080665104,-842.36,0.00027397,2]
[357481976,1744080665114,-1315.87,0.00027397,2]
[357481977,1744080665125,-949.55,0.00027397,2]
[357481978,1744080665135,-150.20594556,0.00027397,2]
[357481979,1744080665145,-300.10402366,0.00027397,2]
[357481980,1744080665154,-1734.75,0.00027397,2]
[357481981,1744080665163,-150.27659897,0.00027397,2]
[357481982,1744080665173,-150.25447333,0.00027397,2]
[357481983,1744080665182,-510.31,0.00027397,2]
[357481984,1744080665191,-903.98,0.00027397,2]
[357481985,1744080665201,-517.62,0.00027397,2]
[357481986,1744080665210,-1471.01,0.00027397,2]
[357481987,1744080665219,-150.08,0.00027397,2]
[357481988,1744080665229,-150.08,0.00027397,2]
[357481989,1744080665238,-150.08,0.00027397,2]
[357481990,1744080665247,-823.57,0.00027397,2]
[357481991,1744080665256,-150.41115734,0.00027397,2]
[357481992,1744080665266,-150.33335888,0.00027397,2]
[357481993,1744080665276,-563.79,0.00027397,2]
[357481994,1744080665285,-1205.37,0.00027397,2]
[357481995,1744080665294,-1071.82,0.00027397,2]
[357481996,1744080665303,-1075.98,0.00027397,2]
[357481997,1744080665313,-3853.42,0.00027397,2]
[357481998,1744080665323,-806.99,0.00027397,2]
[357481999,1744080665333,-914.65,0.00027397,2]
[357482000,1744080665342,-1408.78,0.00027397,2]
[357482001,1744080665351,-885.26,0.00027397,2]
[357482002,1744080665361,-1443.13,0.00027397,2]
[357482003,1744080665370,-838.82,0.00027397,2]
[357482004,1744080665380,-2520.44,0.00027397,2]
[357482005,1744080665390,-1457.24,0.00027397,2]
[357482006,1744080665399,-1190.25,0.00027397,2]
[357482007,1744080665409,-1820.22,0.00027397,2]
[357482008,1744080665418,-874.38,0.00027397,2]
[357482009,1744080665428,-170.115565,0.00027397,7]
[357482010,1744080665437,-170.115565,0.00027397,7]
[357482011,1744080665447,-2243.29,0.00027397,2]
[357482012,1744080665457,-918.27,0.00027397,2]
[357482013,1744080665467,-832.11,0.00027397,2]
[357482014,1744080665477,-1243.39,0.00027397,2]
[357482015,1744080665486,-150.08,0.00027397,2]
[357482016,1744080665495,-150.08,0.00027397,2]
[357482017,1744080665505,-150.08,0.00027397,2]
[357482018,1744080665515,-150.97968269,0.00027397,2]
[357482019,1744080665525,-150.08,0.00027397,2]
[357482020,1744080665535,-930.42,0.00027397,2]
[357482021,1744080665545,-531.98,0.00027397,2]
[357482022,1744080665555,-1271.79,0.00027397,2]
[357482023,1744080665565,-500.0,0.00027397,2]
[357482024,1744080665575,-1627.71,0.00027397,2]
[357482025,1744080665586,-6572.6,0.00027397,2]
[357482026,1744080665596,-627.02,0.00027397,2]
[357482027,1744080665606,-1335.53,0.00027397,2]
[357482028,1744080665616,-167.593456,0.00027397,120]
[357482029,1744080665627,-151.365235,0.00027397,7]
[357482030,1744080665637,-150.16910683,0.00027397,5]
[357482031,1744080665646,-151.3115747,0.00027397,2]
[357482032,1744080665656,-500.0,0.00027397,5]
[357482033,1744080665666,-1000.0,0.00027452,5]
[357482034,1744080665676,-1000.0,0.00027452,5]
[357482035,1744080665685,-224.84517403,0.00027652,5]
[357482036,1744080665695,-1000.0,0.00027652,5]
[357482037,1744080665704,-1000.0,0.00027652,5]
[357482038,1744080665714,-1000.0,0.00027652,2]
[357482039,1744080665724,-1000.0,0.00027652,5]
[357482040,1744080665734,-1000.0,0.00027652,5]
[357482041,1744080665744,-1000.0,0.00027652,5]
[357482042,1744080665754,-1000.0,0.00027652,5]
[357482043,1744080665764,-1000.0,0.00027652,5]
[357482044,1744080665774,-634.06,0.00027671,2]
[357482045,1744080665783,-640.31,0.00027671,2]
[357482046,1744080665793,-875.05,0.00027671,2]
[357482047,1744080665803,-704.94,0.00027671,2]
[357482048,1744080665813,-518.15,0.00027671,2]
[357482049,1744080665823,-665.11,0.00027671,2]
[357482050,1744080665833,-500.0,0.00027671,2]
[357482051,1744080665843,-870.69,0.00027671,2]
[357482052,1744080665852,-3958.33,0.00027671,2]
[357482053,1744080665862,-519.84,0.00027671,2]
[357482054,1744080665872,-151.0,0.00027671,7]
[357482055,1744080665882,-845.85,0.00027671,2]
[357482056,1744080665891,-190.802693,0.00027671,2]
[357482057,1744080665901,-190.802693,0.00027671,2]
[357482058,1744080665910,-634.46,0.00027671,2]
[357482059,1744080665920,-514.04,0.00027671,2]
[357482060,1744080665929,-756.23,0.00027671,2]
[357482061,1744080665939,-1558.34,0.00027671,2]
[357482062,1744080665949,-1644.4,0.00027671,2]
[357482063,1744080665961,-842.36,0.00027671,2]
[357482064,1744080665973,-1315.87,0.00027671,2]
[357482065,1744080665982,-949.55,0.00027671,2]
[357482066,1744080665992,-1734.75,0.00027671,2]
[357482067,1744080666003,-510.31,0.00027671,2]
[357482068,1744080666012,-903.98,0.00027671,2]
[357482069,1744080666022,-517.62,0.00027671,2]
[357482070,1744080666033,-1471.01,0.00027671,2]
[357482071,1744080666044,-823.57,0.00027671,2]
[357482072,1744080666054,-563.79,0.00027671,2]
[357482073,1744080666064,-1205.37,0.00027671,2]
[357482074,1744080666073,-1071.82,0.00027671,2]
[357482075,1744080666083,-1075.98,0.00027671,2]
[357482076,1744080666287,-3853.42,0.00027671,2]
[357482077,1744080666298,-806.99,0.00027671,2]
[357482078,1744080666309,-914.65,0.00027671,2]
[357482079,1744080666320,-1408.78,0.00027671,2]
[357482080,1744080666330,-885.26,0.00027671,2]
[357482081,1744080666341,-1443.13,0.00027671,2]
[357482082,1744080666351,-838.82,0.00027671,2]
[357482083,1744080666362,-2520.44,0.00027671,2]
[357482084,1744080666372,-1457.24,0.00027671,2]
[357482085,1744080666382,-1190.25,0.00027671,2]
[357482086,1744080666393,-1820.22,0.00027671,2]
[357482087,1744080666403,-874.38,0.00027671,2]
[357482088,1744080666413,-2243.29,0.00027671,2]
[357482089,1744080666423,-918.27,0.00027671,2]
[357482090,1744080666433,-832.11,0.00027671,2]
[357482091,1744080666444,-1243.39,0.00027671,2]
[357482092,1744080666454,-930.42,0.00027671,2]
[357482093,1744080666464,-531.98,0.00027671,2]
[357482094,1744080666474,-1271.79,0.00027671,2]
[357482095,1744080666484,-350.69693621,0.00027671,2]
[357482096,1744080666495,-1627.71,0.00027671,2]
[357482097,1744080666505,-6572.6,0.00027671,2]
[357482098,1744080666515,-627.02,0.00027671,2]
[357482099,1744080666526,-1335.53,0.00027671,2]
[357482100,1744080666536,-150.08,0.00027945,2]
[357482101,1744080666546,-150.08,0.00027945,2]
[357482102,1744080666555,-150.08,0.00027945,2]
[357482103,1744080666565,-150.08,0.00027945,2]
[357482104,1744080666574,-150.08,0.00027945,2]
[357482105,1744080666584,-150.08,0.00027945,2]
[357482106,1744080666594,-150.08,0.00027945,2]
[357482107,1744080666603,-150.08,0.00027945,2]
[357482108,1744080666613,-150.08,0.00027945,2]
[357482109,1744080666623,-150.08,0.00027945,2]
[357482110,1744080666632,-634.06,0.00027945,2]
[357482111,1744080666642,-437.485,0.00027945,18]
[357482112,1744080666651,-204.90518406,0.00027945,18]
[357482113,1744080666667,-640.31,0.00027945,2]
[357482114,1744080666677,-875.05,0.00027945,2]
[357482115,1744080666688,-704.94,0.00027945,2]
[357482116,1744080666698,-518.15,0.00027945,2]
[357482117,1744080666708,-665.11,0.00027945,2]
[357482118,1744080666719,-151.0,0.00027945,7]
[357482119,1744080666730,-151.183217,0.00027945,7]
[357482120,1744080666740,-500.0,0.00027945,2]
[357482121,1744080666751,-293.890942,0.00027945,7]
[357482122,1744080666762,-870.69,0.00027945,2]
[357482123,1744080666772,-3958.33,0.00027945,2]
[357482124,1744080666785,-519.84,0.00027945,2]
[357482125,1744080666795,-845.85,0.00027945,2]
[357482126,1744080666806,-634.46,0.00027945,2]
[357482127,1744080666816,-514.04,0.00027945,2]
[357482128,1744080666827,-756.23,0.00027945,2]
[357482129,1744080666837,-1558.34,0.00027945,2]
[357482130,1744080666848,-1644.4,0.00027945,2]
[357482131,1744080666860,-842.36,0.00027945,2]
[357482132,1744080666870,-1315.87,0.00027945,2]
[357482133,1744080666881,-949.55,0.00027945,2]
[357482134,1744080666891,-1734.75,0.00027945,2]
[357482135,1744080666903,-510.31,0.00027945,2]
[357482136,1744080666913,-903.98,0.00027945,2]
[357482137,1744080666923,-517.62,0.00027945,2]
[357482138,1744080666933,-1471.01,0.00027945,2]
[357482139,1744080666945,-823.57,0.00027945,2]
[357482140,1744080666956,-563.79,0.00027945,2]
[357482141,1744080666969,-1205.37,0.00027945,2]
[357482142,1744080666980,-1071.82,0.00027945,2]
[357482143,1744080666990,-1075.98,0.00027945,2]
[357482144,1744080667001,-3853.42,0.00027945,2]
[357482145,1744080667011,-806.99,0.00027945,2]
[357482146,1744080667022,-914.65,0.00027945,2]
[357482147,1744080667034,-1408.78,0.00027945,2]
[357482148,1744080667046,-885.26,0.00027945,2]
[357482149,1744080667056,-1443.13,0.00027945,2]
[357482150,1744080667066,-838.82,0.00027945,2]
[357482151,1744080667076,-2520.44,0.00027945,2]
[357482152,1744080667087,-1457.24,0.00027945,2]
[357482153,1744080667097,-1190.25,0.00027945,2]
[357482154,1744080667107,-1820.22,0.00027945,2]
[357482155,1744080667117,-874.38,0.00027945,2]
[357482156,1744080667127,-2243.29,0.00027945,2]
[357482157,1744080667138,-918.27,0.00027945,2]
[357482158,1744080667148,-832.11,0.00027945,2]
[357482159,1744080667158,-1243.39,0.00027945,2]
[357482160,1744080667168,-930.42,0.00027945,2]
[357482161,1744080667179,-531.98,0.00027945,2]
[357482162,1744080667189,-1271.79,0.00027945,2]
[357482163,1744080667200,-1627.71,0.00027945,2]
[357482164,1744080667210,-6572.6,0.00027945,2]
[357482165,1744080667220,-627.02,0.00027945,2]
[357482166,1744080667230,-1335.53,0.00027945,2]
[357482167,1744080667241,-634.22751454,0.00028219,2]
[357482168,1744080667251,-640.34752651,0.00028219,2]
[357482169,1744080667262,-875.20754438,0.00028219,2]
[357482170,1744080667272,-705.11577496,0.00028219,2]
[357482171,1744080667284,-518.22450078,0.00028219,2]
[357482172,1744080667296,-665.18243655,0.00028219,2]
[357482173,1744080667307,-164.52372482,0.00028219,2]
[357482174,1744080667317,-870.7663813,0.00028219,2]
[357482175,1744080667328,-3958.39803004,0.00028219,2]
[357482176,1744080667338,-519.99727049,0.00028219,2]
[357482177,1744080667348,-846.04790896,0.00028219,2]
[357482178,1744080667358,-634.52842877,0.00028219,2]
[357482179,1744080667368,-514.18021685,0.00028219,2]
[357482180,1744080667378,-756.45341309,0.00028219,2]
[357482181,1744080667388,-1558.47,0.00028219,2]
[357482182,1744080667399,-1644.63762258,0.00028219,2]
[357482183,1744080667409,-842.40564677,0.00028219,2]
[357482184,1744080667419,-1316.02743335,0.00028219,2]
[357482185,1744080667429,-949.64375548,0.00028219,2]
[357482186,1744080667439,-1734.77681117,0.00028219,2]
[357482187,1744080667449,-510.45267116,0.00028219,2]
[357482188,1744080667459,-904.11443947,0.00028219,2]
[357482189,1744080667469,-517.84307688,0.00028219,2]
[357482190,1744080667479,-1471.03680297,0.00028219,2]
[357482191,1744080667488,-823.72601994,0.00028219,2]
[357482192,1744080667499,-563.91174361,0.00028219,2]
[357482193,1744080667509,-1205.42932518,0.00028219,2]
[357482194,1744080667519,-1072.03774879,0.00028219,2]
[357482195,1744080667529,-1076.04364586,0.00028219,2]
[357482196,1744080667540,-3853.60031772,0.00028219,2]
[357482197,1744080667550,-807.12470289,0.00028219,2]
[357482198,1744080667559,-914.71841874,0.00028219,2]
[357482199,1744080667570,-1408.91507765,0.00028219,2]
[357482200,1744080667580,-885.33174472,0.00028219,2]
[357482201,1744080667590,-1443.36438468,0.00028219,2]
[357482202,1744080667600,-838.87955632,0.00028219,2]
[357482203,1744080667610,-2520.60743539,0.00028219,2]
[357482204,1744080667620,-1457.33379216,0.00028219,2]
[357482205,1744080667630,-1190.4770858,0.00028219,2]
[357482206,1744080667640,-1820.22919063,0.00028219,2]
[357482207,1744080667650,-874.41530466,0.00028219,2]
[357482208,1744080667659,-2243.42343259,0.00028219,2]
[357482209,1744080667669,-918.4010492,0.00028219,2]
[357482210,1744080667679,-832.29649374,0.00028219,2]
[357482211,1744080667689,-1243.45750766,0.00028219,2]
[357482212,1744080667699,-930.62432655,0.00028219,2]
[357482213,1744080667709,-532.01601407,0.00028219,2]
[357482214,1744080667719,-1271.93610076,0.00028219,2]
[357482215,1744080667729,-1627.73492531,0.00028219,2]
[357482216,1744080667739,-6572.60548836,0.00028219,2]